bitfinex/quotes_ETHUSD_20251230
["timestamp","ask_amount","ask_price","bid_price","bid_amount"]
[1767091118092,2.4228,2981.3,2980.8,0.001]
[1767091118602,2.4228,2981.2,2980.8,0.001]
[1767091119795,2.4228,2981.2,2980.5,1.3126]
[1767091120096,2.4228,2981.0,2980.5,1.3126]
[1767091122709,2.4228,2980.9,2980.5,0.001]
[1767091123116,2.4228,2980.9,2980.3,1.31160202]
[1767091126324,3.35471058,2980.9,2980.3,1.31160202]
[1767091126621,2.333,2980.8,2980.3,1.31160202]
[1767091126823,2.333,2980.6,2980.0,0.001]
[1767091127805,2.333,2980.6,2980.0,1.3126]
[1767091130108,2.333,2980.6,2980.0,0.001]
[1767091130308,2.333,2980.5,2979.8,0.001]
[1767091130521,2.333,2980.3,2980.0,0.001]
[1767091130830,2.333,2980.3,2979.8,2.03e-06]
[1767091132127,2.333,2980.3,2979.8,1.31260203]
[1767091136133,2.333,2980.3,2979.8,2.03e-06]
[1767091137626,2.333,2980.2,2979.8,2.03e-06]
[1767091137828,2.3765,2980.0,2979.8,2.03e-06]
[1767091138007,2.3765,2980.0,2979.6,2.03e-06]
[1767091139005,2.3765,2979.9,2979.3,2.03e-06]
[1767091139402,2.3765,2979.9,2979.3,1.31560203]
[1767091143839,2.3765,2979.9,2979.3,1.31560203]
[1767091149153,2.3765,2979.8,2979.3,2.03e-06]
[1767091149355,2.9497209,2979.8,2979.3,2.03e-06]
[1767091159372,2.3765,2979.8,2979.4,1.3156]
[1767091173590,2.3785,2979.8,2979.4,1.3156]
[1767091176863,2.3785,2979.8,2979.3,2.03e-06]
[1767091177395,3.35794554,2979.8,2979.3,2.03e-06]
[1767091177586,2.355,2979.7,2979.3,2.03e-06]
[1767091177895,2.355,2979.5,2979.3,2.03e-06]
[1767091178601,2.355,2979.7,2979.3,2.03e-06]
[1767091180487,2.355,2979.7,2979.3,1.31560203]
[1767091180979,2.355,2979.7,2979.3,2.03e-06]
[1767091190197,2.355,2979.7,2979.3,1.31560203]
[1767091195914,2.355,2979.7,2979.3,2.03e-06]
[1767091196118,2.5909,2979.7,2979.3,2.03e-06]
[1767091196407,2.5929,2979.7,2979.3,2.03e-06]
[1767091201723,2.3193,2979.6,2979.3,2.03e-06]
[1767091201885,2.3193,2979.6,2978.8,0.001]
[1767091201886,2.3193,2979.4,2978.8,2.03e-06]
[1767091202085,2.3193,2979.2,2978.6,2.03e-06]
[1767091202313,2.3193,2979.2,2978.5,2.03e-06]
[1767091202837,2.3193,2979.2,2978.5,3.35739175]
[1767091203121,2.3193,2979.2,2978.3,9.59917582]
[1767091203122,2.3193,2979.2,2978.3,0.001]
[1767091203321,2.3193,2979.2,2977.7,3.35825716]
[1767091203322,2.3193,2978.8,2977.9,2.2836]
[1767091203620,2.55123,2978.7,2977.8,5.64176986]
[1767091203913,2.55123,2978.7,2977.9,2.2836]
[1767091204112,2.5713194,2978.7,2977.9,2.28060404]
[1767091205026,2.55123,2978.7,2978.0,2.2836]
[1767091205396,2.55123,2978.7,2978.1,4.92097245]
[1767091206121,2.55123,2978.7,2978.2,2.2836]
[1767091206494,2.55123,2978.7,2978.1,4.92097245]
[1767091208599,2.55123,2978.7,2978.0,5.64152487]
[1767091208815,2.55123,2978.7,2978.1,2.2836]
[1767091209213,2.3193,2978.7,2978.1,2.2836]
[1767091210426,2.3193,2978.7,2978.1,5.64143814]
[1767091210646,0.0200894,2979.5,2978.6,2.2836]
[1767091210802,0.0200894,2979.5,2978.6,7.20457245]
[1767091210803,2.3193,2979.3,2978.6,7.20457245]
[1767091211506,0.881,2979.4,2978.6,7.20457245]
[1767091211703,2.3193,2979.3,2978.6,7.20457245]
[1767091212318,2.3193,2979.3,2978.7,2.2836]
[1767091218030,2.2848,2979.2,2978.6,0.72045725]
[1767091218243,2.2848,2979.2,2978.5,2.3166]
[1767091218415,2.2848,2979.2,2978.3,2.3166]
[1767091218811,2.2848,2979.2,2978.3,3.35762011]
[1767091219011,2.2848,2979.2,2978.4,2.3166]
[1767091221634,2.3048894,2979.2,2978.4,5.67410584]
[1767091222039,2.3048894,2979.2,2978.4,7.06938493]
[1767091222820,2.2848,2979.2,2978.4,7.06938493]
[1767091223021,2.2848,2979.2,2978.5,2.3166]
[1767091225735,2.2868,2979.2,2978.5,2.3166]
[1767091227140,2.2868,2979.2,2978.4,9.67375738]
[1767091227640,2.2868,2979.2,2978.5,1.19903574]
[1767091227941,1.5783,2979.7,2979.1,2.3166]
[1767091229824,1.5783,2979.7,2979.1,3.35665262]
[1767091230029,1.5783,2979.7,2979.2,2.3166]
[1767091230236,1.5783,2979.7,2979.4,2.3166]
[1767091230635,0.002,2979.9,2979.4,2.3166]
[1767091232146,0.002,2979.9,2979.5,2.3166]
[1767091232543,1.5783,2980.2,2979.5,2.3166]
[1767091233043,0.883,2980.3,2979.5,2.3166]
[1767091233217,0.883,2980.3,2979.7,2.3166]
[1767091233618,2.4613,2980.3,2979.7,2.3166]
[1767091235533,2.4613,2980.3,2979.8,2.3166]
[1767091238633,1.5783,2980.2,2979.8,2.3166]
[1767091240464,1.5783,2980.2,2979.6,4.25907234]
[1767091240630,1.5783,2980.2,2979.6,0.90292751]
[1767091243153,1.5783,2980.2,2979.6,4.25907514]
[1767091243852,1.5783,2980.2,2979.7,2.3166]
[1767091244079,1.5783,2980.2,2979.7,3.30979357]
[1767091246756,1.5783,2980.2,2979.8,2.2906]
[1767091247430,1.5783,2980.2,2979.6,5.64774763]
[1767091247957,1.5783,2980.2,2979.7,2.2906]
[1767091251597,0.0200894,2980.2,2979.6,0.001]
[1767091251945,0.6,2980.0,2979.6,0.001]
[1767091252445,0.6,2980.0,2979.6,2.2916]
[1767091259170,0.6,2980.0,2979.7,2.4276]
[1767091260376,0.883,2980.3,2979.7,2.4276]
[1767091262065,0.002,2980.2,2979.7,2.4276]
[1767091266866,0.6,2980.0,2979.7,2.4276]
[1767091271667,0.002,2980.2,2979.7,2.4276]
[1767091276602,0.002,2980.2,2979.8,2.4106]
[1767091276768,0.002,2980.9,2979.9,2.4106]
[1767091276967,0.881,2980.8,2979.9,2.4106]
[1767091277582,0.881,2980.8,2980.0,3.35570469]
[1767091277767,0.881,2980.8,2980.1,2.4106]
[1767091283071,0.883,2980.8,2980.1,2.4106]
[1767091285618,0.883,2980.8,2980.2,2.4106]
[1767091285782,0.002,2980.8,2980.2,2.4106]
[1767091286186,0.002,2980.8,2980.4,2.4106]
[1767091286394,0.002,2980.8,2980.6,2.4106]
[1767091288796,0.002,2980.8,2980.4,2.4106]
[1767091289001,0.002,2980.8,2980.2,5.76601036]
[1767091289385,0.002,2980.8,2980.3,5.76596106]
[1767091289983,0.002,2980.8,2980.4,2.4106]
[1767091290374,0.002,2980.8,2980.2,5.7660324]
[1767091290586,0.002,2980.8,2980.3,4.26750991]
[1767091291313,0.002,2980.8,2980.1,2.4106]
[1767091291469,0.002,2980.8,2980.2,3.35541247]
[1767091291666,0.0220894,2980.8,2980.2,3.35541247]
[1767091293517,0.0220894,2980.8,2980.2,5.76601247]
[1767091295314,0.002,2980.8,2980.2,3.35541247]
[1767091295528,0.002,2980.8,2980.0,2.4106]
[1767091295684,0.002,2980.8,2980.1,2.4106]
[1767091296201,0.002,2980.8,2980.2,2.44415479]
[1767091297287,0.002,2980.8,2980.2,2.4106]
[1767091297483,0.002,2980.8,2980.3,5.7659669]
[1767091297981,0.002,2980.8,2980.4,2.44415254]
[1767091298192,0.002,2980.8,2980.4,2.4106]
[1767091299509,0.002,2980.8,2980.5,3.35514175]
[1767091299710,0.002,2980.8,2980.5,5.76574175]
[1767091300506,0.002,2980.8,2980.5,3.35514175]
[1767091300814,0.002,2980.8,2980.6,2.4106]
[1767091301005,0.002,2980.9,2980.6,2.4106]
[1767091301321,0.004,2980.9,2980.6,2.4106]
[1767091301491,0.002,2980.8,2980.1,2.4106]
[1767091301686,0.002,2980.8,2980.4,2.4106]
[1767091301887,0.002,2980.8,2980.4,5.76582611]
[1767091302086,0.002,2980.8,2980.5,2.4106]
[1767091302616,0.004,2980.9,2980.5,2.4106]
[1767091304214,0.002,2980.8,2980.5,2.4106]
[1767091307022,0.002,2980.8,2980.6,2.3705]
[1767091307322,0.002,2980.9,2980.6,2.3705]
[1767091308628,0.002,2980.9,2980.6,5.72551445]
[1767091308832,0.002,2980.9,2980.7,2.3705]
[1767091309622,0.002,2981.1,2980.7,2.3705]
[1767091309828,0.002,2981.1,2980.9,2.3705]
[1767091313208,0.002,2981.1,2980.5,3.93166683]
[1767091313409,0.891,2981.1,2980.6,2.3705]
[1767091313731,0.891,2981.1,2980.7,2.3705]
[1767091313931,4.54111366,2981.7,2981.0,2.3705]
[1767091313932,1.94405768,2981.7,2981.0,2.3705]
[1767091314124,0.891,2981.6,2981.0,2.3705]
[1767091315938,0.9110894,2981.6,2981.0,2.3705]
[1767091318527,0.891,2981.6,2981.0,2.3705]
[1767091319335,0.891,2981.5,2980.8,6.6077517]
[1767091319508,0.891,2981.6,2981.1,2.372]
[1767091319908,0.891,2981.6,2981.0,3.35457062]
[1767091320108,0.893,2981.6,2981.0,3.35457062]
[1767091321638,0.893,2981.6,2981.0,5.72657062]
[1767091321848,0.893,2981.6,2981.1,2.372]
[1767091322042,1.05305768,2981.7,2981.4,2.372]
[1767091322247,0.002,2982.1,2981.6,2.372]
[1767091322420,0.002,2982.3,2981.9,4.91761215]
[1767091322611,0.002,2982.3,2981.8,2.372]
[1767091324537,4.93770155,2982.1,2981.2,5.72628052]
[1767091324841,4.9306703,2982.1,2981.3,3.51476897]
[1767091325152,4.9306703,2982.1,2981.3,2.372]
[1767091325815,0.01305815,2982.1,2981.3,5.72622185]
[1767091326143,3.36644106,2982.1,2981.3,2.372]
[1767091326347,0.01305815,2982.1,2981.3,2.372]
[1767091326717,3.36641079,2982.1,2981.3,2.372]
[1767091327051,0.33664108,2982.0,2981.3,2.372]
[1767091328912,0.33664108,2982.0,2981.0,2.372]
[1767091328913,0.0200894,2981.7,2981.0,2.372]
[1767091330040,0.6,2981.8,2981.0,5.72657644]
[1767091330238,0.6,2981.8,2981.1,2.372]
[1767091330443,1.52279572,2981.8,2981.1,2.372]
[1767091331050,0.6,2981.8,2981.1,2.372]
[1767091336466,3.95370401,2981.8,2981.1,2.372]
[1767091336765,0.6,2981.8,2981.1,2.372]
[1767091339750,3.9536988,2981.8,2981.1,2.372]
[1767091339952,8.87131095,2981.8,2981.1,2.372]
[1767091340149,0.88914003,2981.7,2981.1,2.372]
[1767091341165,0.6,2981.8,2981.1,2.372]
[1767091342763,3.95368099,2981.8,2981.1,2.372]
[1767091346091,4.91761215,2981.6,2981.0,0.882]
[1767091346791,4.91761215,2981.6,2981.0,3.3412]
[1767091348400,0.006,2981.1,2979.9,0.001]
[1767091348687,0.006,2981.2,2980.4,2.4592]
[1767091348847,0.006,2981.1,2980.4,2.4592]
[1767091349546,0.006,2981.1,2980.2,4.23641753]
[1767091349750,0.006,2981.0,2980.2,6.69561753]
[1767091350069,0.006,2981.0,2980.3,2.4592]
[1767091351051,0.006,2981.0,2980.4,0.001]
[1767091351979,0.006,2981.0,2980.3,2.4592]
[1767091353295,0.006,2981.0,2980.3,5.81455608]
[1767091353588,0.006,2981.0,2980.4,2.4592]
[1767091354983,0.006,2981.0,2980.5,5.81432568]
[1767091355191,0.006,2981.0,2980.6,2.4592]
[1767091356897,0.005,2981.2,2980.6,2.4592]
[1767091357195,0.005,2981.4,2980.7,2.4592]
[1767091358470,3.37388409,2981.7,2980.9,2.4592]
[1767091358471,0.005,2981.7,2980.9,2.4592]
[1767091358792,0.005,2981.7,2980.8,0.881]
[1767091358793,0.005,2981.7,2981.1,2.4592]
[1767091359392,0.005,2981.7,2981.0,0.33402]
[1767091359696,0.005,2981.7,2981.0,2.79322]
[1767091360273,0.005,2981.6,2981.0,2.4592]
[1767091360963,0.005,2981.6,2980.5,3.35610518]
[1767091361170,0.005,2981.6,2980.7,2.4592]
[1767091362493,0.005,2981.5,2980.7,2.4592]
[1767091362701,0.005,2981.5,2980.9,2.4592]
[1767091363302,0.005,2981.4,2980.9,2.4592]
[1767091366675,0.005,2981.3,2980.9,2.4592]
[1767091373914,0.005,2981.3,2980.9,5.81389045]
[1767091374379,0.007,2981.3,2980.9,5.81389045]
[1767091374580,0.007,2981.3,2980.9,2.4592]
[1767091376827,0.007,2981.3,2980.9,5.81389035]
[1767091377125,0.007,2981.3,2981.0,2.3469]
[1767091378617,0.002,2981.3,2981.0,2.3469]
[1767091379524,0.002,2981.4,2981.0,4.26021296]
[1767091379723,0.002,2981.4,2981.1,2.35]
[1767091379926,0.007,2981.7,2981.1,2.35]
[1767091380992,0.007,2981.7,2980.7,5.80021296]
[1767091380993,0.007,2981.3,2980.6,2.35]
[1767091381293,0.007,2981.1,2980.6,2.35]
[1767091381640,0.007,2980.9,2980.5,0.001]
[1767091383296,3.35403357,2981.5,2980.5,0.001]
[1767091383297,0.602,2981.8,2980.7,4.91921296]
[1767091383519,0.002,2981.7,2980.9,2.35]
[1767091383732,0.002,2981.7,2981.1,2.35]
[1767091390232,0.002,2981.6,2981.1,2.35]
[1767091391216,0.6,2981.4,2981.1,2.35]
[1767091394139,0.6,2981.4,2981.1,2.38354466]
[1767091394345,0.604,2981.7,2981.2,2.35]
[1767091395432,0.604,2981.7,2981.3,2.35]
[1767091396433,0.002,2981.7,2981.3,2.35]
[1767091396639,0.602,2981.9,2981.3,2.35]
[1767091397554,0.602,2981.9,2981.4,2.361]
[1767091397926,0.002,2981.7,2981.4,2.361]
[1767091398138,0.002,2981.7,2981.6,2.361]
[1767091398622,0.602,2981.9,2981.6,2.361]
[1767091399647,0.002,2982.1,2981.6,2.361]
[1767091399952,0.606,2982.3,2981.7,2.361]
[1767091403863,0.00142546,2982.9,2982.1,4.91921296]
[1767091404026,0.606,2982.7,2982.4,4.91921296]
[1767091404223,0.00142546,2982.9,2982.4,2.361]
[1767091407254,0.0200894,2982.8,2982.1,2.361]
[1767091410053,0.00142546,2982.9,2982.1,10.62735179]
[1767091410233,0.00142546,2982.9,2982.4,2.361]
[1767091410642,0.00142546,2982.9,2982.1,2.361]
[1767091411032,0.00142546,2982.9,2982.2,2.361]
[1767091411429,0.00142546,2982.9,2982.3,2.361]
[1767091412859,0.002,2982.8,2982.3,2.361]
[1767091413530,0.002,2982.8,2982.6,2.361]
[1767091419142,4.91505243,2982.8,2982.1,2.361]
[1767091419371,0.49364779,2982.8,2982.2,0.88]
[1767091419866,0.49364779,2982.8,2982.5,0.001]
[1767091420067,0.002,2982.8,2982.5,0.001]
[1767091423946,0.002,2982.8,2982.0,0.88]
[1767091424145,0.002,2982.8,2981.4,0.001]
[1767091424146,4.91305243,2982.4,2981.6,2.362]
[1767091426979,0.6,2982.2,2981.6,2.362]
[1767091430679,3.95323979,2982.2,2981.6,2.362]
[1767091430860,1.82394045,2982.2,2981.6,2.362]
[1767091431048,5.17718753,2982.2,2981.6,2.362]
[1767091431256,1.82394045,2982.2,2981.6,2.362]
[1767091431482,0.6,2982.2,2981.6,2.362]
[1767091432075,3.95323673,2982.2,2981.6,2.362]
[1767091432784,0.6,2982.2,2981.6,2.362]
[1767091433707,0.50888172,2982.2,2981.6,0.001]
[1767091433863,0.4658,2982.5,2982.1,2.4428]
[1767091434064,0.4658,2982.5,2981.9,7.35585243]
[1767091434384,0.4658,2982.5,2981.9,2.4428]
[1767091435179,0.4678,2982.5,2981.9,2.4428]
[1767091435558,0.4678,2982.5,2982.0,2.4428]
[1767091444206,0.4678,2982.5,2982.0,7.35585243]
[1767091445604,3.37467018,2982.8,2982.2,7.37525243]
[1767091449222,0.002,2982.8,2982.6,4.91305243]
[1767091449402,0.002,2982.8,2981.8,2.4622]
[1767091449403,0.91353131,2982.8,2981.8,2.4622]
[1767091449710,19.364855,2982.7,2982.2,4.91305243]
[1767091450029,19.364855,2982.7,2981.9,0.58159333]
[1767091450030,0.03353131,2982.6,2981.9,5.49464576]
[1767091450508,0.03353131,2982.6,2982.1,0.001]
[1767091451709,0.6,2982.4,2982.1,0.001]
[1767091451904,0.03353131,2982.3,2982.1,0.001]
[1767091452704,0.03353131,2982.6,2982.1,0.001]
[1767091453612,2.300609,2983.1,2982.5,2.4622]
[1767091454113,2.300609,2983.1,2982.4,4.91305243]
[1767091454483,2.300609,2983.1,2982.3,2.4622]
[1767091454703,8.230854,2983.1,2982.3,2.4622]
[1767091454914,8.230854,2983.1,2982.4,1.07284376]
[1767091455101,0.002,2983.5,2982.8,2.4622]
[1767091455302,0.002,2983.5,2982.5,0.88]
[1767091455303,5.102532,2983.4,2982.5,0.88]
[1767091455504,6.520281,2983.3,2982.5,0.88]
[1767091455882,4.91305243,2983.4,2982.5,3.1379]
[1767091455883,8.36596,2983.4,2982.5,3.1379]
[1767091456097,7.84334,2983.4,2982.5,3.1379]
[1767091456303,8.528618,2983.3,2982.6,2.2579]
[1767091456504,4.746651,2983.3,2982.6,2.2579]
[1767091456786,3.35381627,2983.5,2982.7,2.2579]
[1767091457183,2.988414,2983.4,2982.5,4.27829015]
[1767091457407,9.852872,2983.3,2982.5,3.1379]
[1767091457608,0.002,2983.1,2982.5,3.1379]
[1767091457800,0.002,2983.1,2982.5,0.88]
[1767091460004,0.002,2983.1,2982.5,3.1379]
[1767091464895,0.002,2983.1,2982.5,6.49076765]
[1767091465224,0.002,2983.1,2982.6,0.64907677]
[1767091466236,0.002,2983.1,2982.6,2.90697677]
[1767091467319,0.002,2983.1,2982.6,0.64907677]
[1767091467627,0.002,2983.1,2982.5,0.88]
[1767091468590,0.002,2983.1,2982.5,3.1379]
[1767091470999,0.002,2983.1,2982.5,3.1389]
[1767091472338,0.002,2983.1,2982.5,6.49176343]
[1767091473524,0.002,2983.1,2982.5,4.23386343]
[1767091473724,0.002,2983.1,2982.6,2.68128634]
[1767091477345,0.002,2983.1,2982.7,2.2579]
[1767091478242,0.002,2983.3,2982.7,0.03352667]
[1767091478544,0.002,2983.3,2982.6,3.77615614]
[1767091478545,0.002,2983.3,2982.8,2.29142554]
[1767091478708,0.002,2983.3,2982.8,2.2579]
[1767091478913,0.002,2983.3,2983.0,2.2579]
[1767091479110,0.002,2983.5,2983.0,2.2579]
[1767091479540,0.002,2983.3,2983.0,2.2579]
[1767091480513,0.002,2983.3,2982.9,0.22579]
[1767091480713,0.002,2983.3,2982.8,2.2579]
[1767091482026,0.002,2983.3,2982.9,2.29142442]
[1767091482344,0.002,2983.3,2982.9,2.2579]
[1767091483640,0.002,2983.7,2983.1,2.2579]
[1767091483939,0.004,2983.7,2983.1,2.2579]
[1767091484142,0.004,2983.7,2983.3,2.2579]
[1767091484327,0.002,2983.6,2982.9,2.2579]
[1767091484546,0.002,2983.6,2982.7,5.61056551]
[1767091485351,0.002,2983.6,2982.8,2.2579]
[1767091485739,0.002,2983.6,2982.8,5.61044623]
[1767091486480,0.82665437,2983.6,2982.8,5.61044623]
[1767091486767,0.82665437,2983.6,2982.8,2.2579]
[1767091487469,0.82665437,2983.6,2982.7,3.35260882]
[1767091488153,4.91107896,2983.5,2982.6,2.3355]
[1767091488867,4.18031008,2983.6,2982.6,2.3355]
[1767091489048,0.41823101,2983.5,2982.6,2.3355]
[1767091489251,3.77008892,2983.5,2982.6,2.3355]
[1767091491069,3.77008892,2983.5,2982.6,5.68827148]
[1767091491270,11.507813,2983.4,2982.6,2.3355]
[1767091491468,3.35190113,2983.4,2982.6,2.3355]
[1767091491643,0.37701321,2983.3,2982.6,2.3355]
[1767091496382,0.37901321,2983.3,2982.6,2.3355]
[1767091498888,3.73103417,2983.3,2982.6,2.3355]
[1767091499382,0.37901321,2983.3,2982.6,2.3355]
[1767091499998,3.73100798,2983.3,2982.6,2.3355]
[1767091500604,0.37901321,2983.3,2982.6,2.3355]
[1767091500907,4.91107896,2983.0,2982.1,2.3874]
[1767091501518,4.91107896,2983.0,2982.1,5.74073029]
[1767091501519,9.204888,2983.0,2982.1,5.74073029]
[1767091501813,7.653761,2983.0,2982.2,2.3864]
[1767091502111,0.002,2983.3,2982.8,2.3864]
[1767091502505,3.6893876,2983.3,2982.4,0.88]
[1767091502999,3.6893876,2983.3,2982.5,2.3864]
[1767091504078,3.6893876,2983.3,2982.5,2.3874]
[1767091504276,3.6893876,2983.3,2982.5,0.001]
[1767091505694,0.33738413,2983.3,2982.5,0.001]
[1767091505892,0.33738413,2983.3,2982.5,2.3874]
[1767091508215,0.33738413,2983.3,2982.5,6.73762881]
[1767091508401,0.33738413,2983.3,2982.5,3.38475055]
[1767091508604,3.68943177,2983.3,2982.5,3.38475055]
[1767091508910,3.68943177,2983.3,2982.5,2.3874]
[1767091509607,3.68943177,2983.3,2982.5,0.001]
[1767091510508,0.33738413,2983.3,2982.5,0.001]
[1767091510703,0.002,2983.3,2982.5,2.3874]
[1767091511619,0.002,2983.3,2982.6,0.03352779]
[1767091511918,0.002,2983.3,2982.8,2.3864]
[1767091521724,0.002,2983.3,2982.9,2.2522]
[1767091524546,0.002,2983.3,2982.9,0.001]
[1767091524713,0.002,2983.3,2983.0,2.2522]
[1767091526207,0.002,2983.3,2982.9,0.001]
[1767091531448,4.91307896,2983.3,2982.1,0.001]
[1767091531615,0.003,2982.9,2982.1,0.001]
[1767091532044,0.0085,2982.6,2981.7,2.2532]
[1767091532216,0.0085,2982.6,2981.7,3.1332]
[1767091532642,0.0085,2982.5,2981.7,3.1332]
[1767091532814,0.0085,2982.5,2981.7,6.48697504]
[1767091533629,0.0085,2982.5,2981.7,5.60697504]
[1767091533955,0.0085,2982.5,2982.0,2.2522]
[1767091534149,0.0085,2982.5,2982.0,2.28573454]
[1767091534341,0.0085,2982.5,2982.0,2.2522]
[1767091536951,0.0085,2982.5,2982.1,2.2522]
[1767091539762,0.0105,2982.5,2982.1,2.2522]
[1767091543463,0.0105,2982.5,2982.1,5.60552286]
[1767091544037,0.0105,2982.5,2982.1,2.2522]
[1767091546883,0.0105,2982.5,2982.0,0.001]
[1767091547186,0.0105,2982.5,2982.1,2.4905]
[1767091549489,0.0105,2982.5,2982.1,2.52403341]
[1767091549661,0.0105,2982.5,2982.2,2.4905]
[1767091557119,0.0105,2982.5,2982.0,0.001]
[1767091557120,4.91384598,2982.3,2982.0,0.001]
[1767091557300,4.91384598,2982.3,2981.7,0.98529675]
[1767091557301,0.0085,2982.2,2981.7,2.4915]
[1767091560896,0.0075,2982.4,2981.8,2.424]
[1767091561101,0.002,2982.5,2982.1,2.424]
[1767091561324,0.0075,2982.8,2982.3,2.424]
[1767091562625,0.002,2982.5,2982.3,2.424]
[1767091562829,0.002,2982.5,2982.3,2.6664]
[1767091563401,0.0075,2982.8,2982.4,2.424]
[1767091564624,0.0075,2982.8,2981.7,0.001]
[1767091564936,0.0115,2982.4,2981.9,2.424]
[1767091565235,0.0115,2982.4,2981.9,2.45753566]
[1767091565432,0.0115,2982.4,2982.0,2.424]
[1767091565815,0.0115,2982.8,2982.1,2.45753341]
[1767091566207,0.0115,2982.8,2982.1,2.424]
[1767091567446,4.91384598,2982.7,2982.1,2.424]
[1767091567647,0.0115,2982.6,2982.1,2.424]
[1767091572942,0.0115,2982.2,2981.7,0.001]
[1767091573155,2.3165,2981.9,2981.6,0.001]
[1767091573314,2.3165,2981.9,2981.5,2.425]
[1767091574249,0.002,2982.8,2981.9,2.424]
[1767091574417,0.002,2982.8,2982.4,2.424]
[1767091574968,0.002,2982.8,2982.5,2.424]
[1767091578386,2.3274,2983.2,2982.5,2.2625]
[1767091578685,2.3274,2983.2,2982.6,2.2625]
[1767091578845,2.3274,2983.2,2982.6,0.98482817]
[1767091579038,0.002,2983.3,2982.7,2.2625]
[1767091579441,0.002,2983.3,2982.8,2.2625]
[1767091580545,2.3294,2983.3,2982.8,2.2625]
[1767091583598,2.3294,2983.3,2982.9,2.2625]
[1767091588388,0.002,2983.3,2982.9,2.2625]
[1767091589929,2.3294,2983.3,2982.9,2.2625]
[1767091594325,0.002,2983.3,2982.9,2.2625]
[1767091599031,2.3294,2983.3,2982.9,2.2625]
[1767091605335,2.56234,2983.3,2982.9,2.2625]
[1767091608944,2.56234,2983.3,2982.5,5.75569095]
[1767091609116,2.3294,2983.3,2982.7,3.35265271]
[1767091609746,2.3294,2983.3,2982.7,5.75545271]
[1767091610119,2.3294,2983.3,2982.7,3.35265271]
[1767091611955,2.3294,2983.3,2982.8,0.001]
[1767091612343,0.002,2983.3,2982.9,2.4028]
[1767091620737,0.002,2983.3,2983.0,0.03352329]
[1767091620966,0.002,2983.3,2983.1,2.4246]
[1767091622162,0.88,2983.8,2983.1,0.24581244]
[1767091622163,0.87742756,2983.8,2983.1,0.24581244]
[1767091622362,0.002,2984.3,2983.7,2.4246]
[1767091622363,0.002,2984.2,2983.7,2.4246]
[1767091622568,0.002,2984.4,2983.7,2.4246]
[1767091622870,0.002,2984.3,2983.8,2.4246]
[1767091626568,0.004,2984.3,2983.8,2.4246]
[1767091627475,0.002,2984.3,2983.8,2.4246]
[1767091627676,3.35247001,2984.7,2984.0,2.4246]
[1767091627677,0.002,2984.7,2984.0,2.4246]
[1767091627875,0.002,2984.7,2984.1,2.4246]
[1767091628993,0.002,2984.7,2984.2,3.35098183]
[1767091629277,0.002,2984.8,2984.3,2.4246]
[1767091629485,0.006,2985.1,2984.3,2.4246]
[1767091629658,0.008,2985.0,2984.3,2.4246]
[1767091629861,0.008,2985.0,2984.4,2.4246]
[1767091630074,8.26161199,2985.2,2984.4,2.4246]
[1767091630279,4.2563,2985.1,2984.4,2.4246]
[1767091630650,0.01,2985.2,2984.4,2.4246]
[1767091631285,0.01,2985.2,2984.6,2.4246]
[1767091632764,0.01,2985.2,2984.6,2.66706]
[1767091632979,0.01,2985.2,2984.6,2.4246]
[1767091633183,0.01,2985.2,2984.6,2.3304325]
[1767091633761,0.01,2985.2,2984.6,2.18720029]
[1767091633964,0.01,2985.2,2984.0,2.4246]
[1767091634165,0.2454,2985.1,2984.0,2.4246]
[1767091634366,0.2454,2985.0,2984.0,2.4246]
[1767091635704,0.2454,2985.0,2984.2,2.4246]
[1767091636908,0.2454,2985.0,2984.0,7.58239269]
[1767091637106,0.2454,2985.0,2984.1,2.4524]
[1767091637511,0.2454,2985.0,2984.2,3.35098183]
[1767091637691,0.2454,2985.0,2984.3,0.03350869]
[1767091637890,0.2454,2985.0,2983.9,5.8036506]
[1767091637891,7.58017076,2985.0,2983.9,5.8036506]
[1767091638090,1.28250009,2984.9,2983.9,0.03351318]
[1767091638390,0.03350884,2984.9,2984.1,5.80347216]
[1767091638594,0.03350884,2984.9,2984.1,3.35107216]
[1767091638999,0.03350884,2984.9,2984.2,2.4524]
[1767091640413,0.0355,2985.2,2984.3,2.48590869]
[1767091640709,0.0355,2985.2,2984.5,2.4524]
[1767091641012,0.0355,2985.2,2984.5,2.48590644]
[1767091641386,0.0355,2985.2,2984.5,2.4524]
[1767091642404,0.0355,2985.2,2984.6,2.4524]
[1767091642923,0.0355,2985.0,2983.0,3.5522784]
[1767091643121,0.0355,2984.4,2983.8,2.4534]
[1767091643321,0.88,2984.3,2984.0,2.4524]
[1767091644126,0.6,2984.1,2984.0,2.4524]
[1767091646428,0.0355,2984.3,2984.0,2.4524]
[1767091646627,0.6355,2984.5,2984.0,2.4524]
[1767091646803,0.6355,2984.4,2984.0,2.4524]
[1767091647328,0.002,2984.3,2984.0,2.4524]
[1767091648521,1.21506825,2984.5,2983.9,2.4524]
[1767091648710,1.21506825,2984.5,2984.1,2.4524]
[1767091648911,0.52031385,2984.4,2984.1,2.4524]
[1767091651112,2.3112,2984.3,2983.8,0.001]
[1767091651429,2.3112,2984.3,2983.8,2.4534]
[1767091652627,2.3112,2984.3,2983.8,0.001]